bitfinex/quotes_ETHUSD_20250219
["timestamp","ask_amount","ask_price","bid_price","bid_amount"]
[1739930702635,0.8232,2678.6,2678.0,0.07556225]
[1739930702841,0.8232,2678.6,2678.2,0.07535485]
[1739930703037,0.8232,2678.6,2678.1,0.0754302]
[1739930703345,0.8232,2678.6,2678.2,0.07535485]
[1739930703555,0.7838,2678.9,2678.3,0.7933]
[1739930703759,0.7838,2678.9,2678.4,0.07520416]
[1739930706285,1.1267043,2678.9,2678.4,0.07520416]
[1739930706456,2.49867917,2678.7,2678.4,0.07520416]
[1739930706662,0.7619,2678.6,2678.4,0.07520416]
[1739930706961,0.7619,2678.6,2678.5,0.07512883]
[1739930707168,0.7619,2678.6,2678.0,1.23589564]
[1739930707372,0.7619,2678.6,2678.5,0.07485801]
[1739930707690,2.49867917,2678.7,2678.1,0.0373357]
[1739930707857,0.7619,2678.9,2678.5,0.07485801]
[1739930708058,0.7619,2678.9,2678.4,0.8158]
[1739930708286,0.7619,2678.9,2678.6,0.07478268]
[1739930708465,0.7619,2678.9,2678.5,0.07485801]
[1739930708653,2.64524297,2679.0,2678.5,0.03733015]
[1739930708866,2.64524297,2679.0,2678.6,0.07478268]
[1739930709067,2.64524297,2679.0,2678.4,0.8158]
[1739930709261,2.64524297,2679.0,2678.7,0.07447431]
[1739930709461,2.64524297,2679.0,2678.4,0.8158]
[1739930709674,2.64524297,2679.0,2678.5,0.49227268]
[1739930709847,0.1465638,2679.0,2678.5,0.56689764]
[1739930710051,0.1465638,2679.0,2678.5,0.52956796]
[1739930710246,0.1465638,2679.0,2678.5,0.5668977]
[1739930711171,2.64524297,2679.0,2678.5,0.07462496]
[1739930711572,0.8313,2678.9,2678.5,0.07462496]
[1739930711846,2.64524297,2679.0,2678.5,0.07462496]
[1739930712817,0.7717,2678.9,2678.5,0.07462496]
[1739930712979,0.7717,2678.9,2678.2,6.1711]
[1739930713315,0.7717,2678.9,2678.6,0.07449925]
[1739930713529,1.1133943,2678.9,2678.2,6.1711]
[1739930713735,0.1465638,2679.0,2678.7,0.07443023]
[1739930714026,0.1465638,2679.0,2678.8,0.07435491]
[1739930714241,0.1465638,2679.0,2678.8,3.80732491]
[1739930714376,0.1465638,2679.0,2678.9,0.806]
[1739930714581,0.1465638,2679.0,2678.9,1.33795326]
[1739930714998,0.1465638,2679.0,2678.9,0.88032368]
[1739930715742,0.1465638,2679.0,2678.9,0.07432368]
[1739930716072,0.1465638,2679.0,2678.6,0.8089]
[1739930716288,0.1465638,2679.0,2678.9,0.07431108]
[1739930716513,0.1465638,2679.0,2678.5,5.36]
[1739930716678,0.1465638,2679.0,2678.9,0.07431108]
[1739930716879,0.4886881,2679.0,2678.5,5.36]
[1739930717100,1.3087881,2679.0,2678.9,0.07431108]
[1739930717300,0.8201,2678.9,2678.1,0.7936]
[1739930717511,2.49867917,2678.7,2678.1,0.7936]
[1739930717811,0.8201,2678.9,2678.2,0.11217263]
[1739930718512,0.8201,2678.9,2678.2,0.33765213]
[1739930719394,2.49867917,2678.7,2678.2,0.33765213]
[1739930719603,0.7773,2678.6,2678.2,0.33765213]
[1739930720189,1.10489792,2678.6,2678.2,0.33765213]
[1739930720491,1.10489792,2678.6,2678.2,0.07483839]
[1739930720815,1.10489792,2678.6,2678.0,5.36]
[1739930721020,0.7773,2678.6,2678.3,0.07475043]
[1739930721313,0.7773,2678.6,2678.0,5.36]
[1739930721515,0.7773,2678.6,2678.4,0.07467509]
[1739930721688,0.7773,2678.6,2677.9,5.2645456]
[1739930721879,0.7773,2678.6,2678.5,0.07459976]
[1739930722078,0.7773,2678.6,2677.9,1.5302956]
[1739930722322,0.7773,2678.6,2678.5,0.07459976]
[1739930722511,0.7773,2678.6,2678.0,0.68902956]
[1739930722512,0.8086,2678.8,2678.1,0.78883576]
[1739930722717,3.45384297,2679.0,2678.5,0.07459976]
[1739930722898,3.45384297,2679.0,2678.1,4.48546]
[1739930723105,3.45384297,2679.0,2678.6,0.07452443]
[1739930723424,3.45384297,2679.0,2678.7,0.07444911]
[1739930723614,3.45384297,2679.0,2678.2,0.89084996]
[1739930723781,3.45384297,2679.0,2678.8,0.07437379]
[1739930723987,3.45384297,2679.0,2678.2,1.15387916]
[1739930724336,3.45384297,2679.0,2678.3,0.80128835]
[1739930724488,3.45384297,2679.0,2678.3,0.07475043]
[1739930726227,3.45384297,2679.0,2678.4,0.07467509]
[1739930726588,3.45384297,2679.0,2678.1,6.1115]
[1739930726821,3.45384297,2679.0,2678.2,0.07482578]
[1739930727188,3.45384297,2679.0,2678.2,0.11216004]
[1739930727522,3.45384297,2679.0,2678.2,1.014233]
[1739930727700,3.45384297,2679.0,2678.2,0.07482578]
[1739930728404,3.45384297,2679.0,2678.3,0.26328647]
[1739930728600,3.45384297,2679.0,2678.4,0.8312]
[1739930729204,3.45384297,2679.0,2678.5,0.07459976]
[1739930730891,0.7686,2678.9,2678.5,0.07459976]
[1739930731219,1.1099843,2678.9,2678.6,0.07452443]
[1739930731393,0.7686,2678.9,2678.6,0.07452443]
[1739930731597,0.7686,2678.9,2678.2,0.45892246]
[1739930731800,0.7686,2678.9,2678.3,0.07475043]
[1739930733535,0.7686,2678.9,2678.4,0.26358603]
[1739930733926,0.7686,2678.9,2678.5,0.07459976]
[1739930734118,0.1465638,2679.0,2678.5,0.11193402]
[1739930734319,0.1465638,2679.0,2678.5,0.07459976]
[1739930734523,0.1465638,2679.0,2678.5,0.11192996]
[1739930735329,0.1465638,2679.0,2678.6,0.26358603]
[1739930735743,0.1465638,2679.0,2678.7,0.07434205]
[1739930737019,0.1465638,2679.0,2678.8,1.27636054]
[1739930737203,0.1465638,2679.0,2678.8,1.35062727]
[1739930737406,0.1465638,2679.0,2678.8,0.86326673]
[1739930737813,0.1465638,2679.0,2678.9,0.03732529]
[1739930738015,0.1465638,2679.0,2678.9,0.07412845]
[1739930739559,0.9104638,2679.0,2678.9,0.07412845]
[1739930740055,0.9104638,2679.0,2678.9,0.07402772]
[1739930740196,0.1465638,2679.0,2678.9,0.07402772]
[1739930740401,0.1465638,2679.0,2678.5,0.86332954]
[1739930740703,0.7995,2678.9,2678.6,0.60770063]
[1739930741001,0.7995,2678.9,2678.6,0.07425367]
[1739930741201,0.7995,2678.9,2678.4,0.42129639]
[1739930741402,0.7995,2678.9,2678.5,0.07441714]
[1739930742874,0.1465638,2679.0,2678.6,0.26332771]
[1739930743343,0.1465638,2679.0,2678.7,0.07426649]
[1739930744070,0.1465638,2679.0,2678.8,0.8115]
[1739930744283,0.1465638,2679.0,2678.8,0.88569117]
[1739930744774,0.1465638,2679.0,2678.8,4.61870117]
[1739930744954,0.1465638,2679.0,2678.9,0.46187012]
[1739930745358,0.1465638,2679.0,2678.9,4.26885598]
[1739930745563,0.1465638,2679.0,2678.9,5.76233327]
[1739930745878,0.1465638,2679.0,2678.9,14.81928742]
[1739930746180,0.1465638,2679.0,2678.9,15.36928742]
[1739930751407,0.1465638,2679.0,2678.9,24.17928742]
[1739930751974,0.1465638,2679.0,2678.9,24.46628322]
[1739930755502,0.1465638,2679.0,2678.9,24.90523209]
[1739930756814,0.1465638,2679.0,2678.9,25.17623209]
[1739930756986,0.1465638,2679.0,2678.9,24.73728322]
[1739930757803,0.1465638,2679.0,2678.9,24.46628322]
[1739930760611,3.8e-06,2679.0,2678.9,24.46628322]
[1739930760969,3.8e-06,2679.0,2678.9,28.40828322]
[1739930761204,0.8225,2681.1,2679.7,0.7952]
[1739930761416,0.8225,2681.1,2680.4,3.73078]
[1739930761576,0.8225,2681.1,2680.5,0.07215628]
[1739930762215,2.49867917,2681.1,2680.5,0.07215628]
[1739930762373,0.8006,2681.0,2680.5,0.07215628]
[1739930762581,0.8006,2681.0,2680.5,0.74993546]
[1739930762877,0.8006,2681.0,2680.6,0.07121889]
[1739930763474,0.8006,2681.0,2680.2,5.36]
[1739930763681,0.7548,2680.9,2680.7,0.07114368]
[1739930763975,2.49867917,2680.8,2680.2,5.36]
[1739930764306,0.8095,2680.7,2680.2,5.36]
[1739930764717,2.49867917,2680.5,2679.8,5.36]
[1739930764902,0.8095,2680.4,2679.8,5.36]
[1739930765078,0.8095,2680.4,2679.8,6.09212795]
[1739930765417,0.8095,2680.4,2679.8,5.36]
[1739930765909,0.8095,2680.1,2679.4,5.36]
[1739930766077,0.33081792,2680.0,2679.4,5.36]
[1739930766279,0.8052,2679.9,2679.4,5.36]
[1739930766479,0.8052,2679.9,2679.5,0.73186147]
[1739930767116,2.49867917,2680.5,2679.7,3.73166]
[1739930767117,0.7817,2680.4,2679.7,3.73166]
[1739930767283,0.7817,2680.4,2679.7,7.46333]
[1739930767624,0.7817,2680.4,2679.9,3.73146]
[1739930769174,0.7817,2680.4,2679.9,3.73138]
[1739930769375,0.8077,2680.7,2680.0,4.49634]
[1739930770237,0.8077,2680.7,2680.0,0.7651]
[1739930770377,0.8077,2680.7,2680.1,0.74936511]
[1739930770583,1.13833792,2680.7,2680.1,0.74936511]
[1739930771413,0.8077,2680.7,2680.1,0.74936511]
[1739930772586,0.8077,2680.7,2679.9,5.36]
[1739930773430,2.49867917,2680.5,2679.9,6.12272833]
[1739930773655,0.7664,2680.4,2679.9,6.12272833]
[1739930773792,0.32650792,2680.4,2679.9,5.36]
[1739930773991,0.7664,2680.3,2679.9,5.36]
[1739930775135,0.7664,2680.3,2679.5,0.76257872]
[1739930775340,3.33047917,2680.2,2679.5,0.76257872]
[1739930775513,0.7791,2680.1,2679.5,0.76257872]
[1739930776237,0.7791,2680.1,2679.5,3.76257872]
[1739930778228,0.7791,2680.1,2679.6,0.07173856]
[1739930778406,0.7791,2680.1,2679.6,0.33547022]
[1739930779649,0.7791,2680.1,2679.6,0.07173856]
[1739930780021,0.7791,2680.1,2679.6,0.99117029]
[1739930780228,0.7791,2680.1,2679.6,0.07173856]
[1739930781345,0.7791,2680.1,2679.6,3.84090245]
[1739930781552,0.7791,2680.1,2679.6,0.07173856]
[1739930782452,0.7791,2680.1,2679.7,0.7871]
[1739930782650,0.7791,2680.1,2679.7,1.12270536]
[1739930782946,0.7791,2680.1,2679.8,0.48545954]
[1739930783152,0.7791,2680.1,2679.7,1.12270536]
[1739930783363,0.7508,2680.6,2679.9,3.80301118]
[1739930783655,0.7508,2680.6,2680.0,0.07168286]
[1739930783851,0.7508,2680.6,2679.7,1.05090366]
[1739930784057,0.7508,2680.6,2680.1,0.07160762]
[1739930784258,0.7508,2680.6,2680.0,0.26380366]
[1739930784415,0.7508,2680.6,2680.2,0.07153238]
[1739930786357,0.7508,2680.6,2680.2,0.81317107]
[1739930787154,0.7508,2680.6,2680.3,0.26353892]
[1739930787587,2.49867917,2681.0,2680.4,0.07138192]
[1739930787740,0.816,2680.9,2680.4,0.07138192]
[1739930787946,0.816,2680.9,2680.4,1.08813587]
[1739930788256,0.816,2681.4,2680.6,4.52099]
[1739930788460,0.816,2681.4,2680.6,9.8809]
[1739930788616,0.816,2681.4,2680.7,0.07082292]
[1739930789924,0.816,2681.4,2680.8,0.76520229]
[1739930790117,0.816,2681.4,2680.8,0.83595001]
[1739930790660,0.816,2681.4,2680.9,0.456629]
[1739930790959,0.816,2681.4,2680.9,0.52730152]
[1739930792261,0.816,2681.4,2680.9,0.79084044]
[1739930792879,0.816,2681.4,2680.9,6.15084044]
[1739930794287,0.816,2681.4,2681.0,3.0]
[1739930794472,0.816,2681.4,2681.1,0.91508404]
[1739930794682,0.816,2681.4,2681.1,0.98533582]
[1739930800789,0.816,2681.4,2681.1,4.71512582]
[1739930801097,0.9145638,2681.6,2681.1,0.98533582]
[1739930801306,0.9145638,2681.6,2681.2,3.72958]
[1739930801605,0.9145638,2681.6,2681.3,0.47149158]
[1739930801905,0.9145638,2681.6,2681.4,0.06906425]
[1739930802555,2.64524297,2681.6,2681.4,0.06906425]
[1739930802759,2.64524297,2681.6,2681.2,5.36]
[1739930802760,0.7707,2681.5,2681.2,5.36]
[1739930804109,0.7707,2681.5,2681.2,9.08966]
[1739930804402,0.7707,2681.5,2681.3,1.0755244]
[1739930806572,0.1465638,2681.6,2681.4,0.7305755]
[1739930808100,0.1465638,2681.6,2681.5,0.06898908]
[1739930809474,0.1465638,2681.6,2681.5,10.53902645]
[1739930809710,0.1465638,2681.6,2681.5,13.50173908]
[1739930809915,0.1465638,2681.6,2681.5,15.05013715]
[1739930810411,0.1465638,2681.6,2681.5,15.73146825]
[1739930811177,0.8142,2682.5,2681.7,4.52236]
[1739930811379,0.8142,2682.5,2681.8,0.55]
[1739930811577,0.8142,2682.5,2681.8,0.61813522]
[1739930811870,0.8142,2682.5,2681.9,0.456629]
[1739930812076,0.8142,2682.5,2681.9,0.52468908]
[1739930814445,0.8142,2682.5,2681.9,0.06806008]
[1739930814654,5.38,2682.8,2681.9,0.06806008]
[1739930814655,0.7611,2682.2,2681.9,0.06806008]
[1739930814944,0.7611,2682.2,2682.0,0.06798494]
[1739930815100,0.7611,2682.2,2681.4,6.0905755]
[1739930815300,0.7611,2682.2,2682.1,0.06790981]
[1739930815599,0.7611,2682.2,2681.4,6.0905755]
[1739930815917,0.7611,2682.2,2681.5,0.68690755]
[1739930816221,0.7611,2682.2,2681.5,0.75526824]
[1739930816422,0.7611,2682.2,2681.5,0.33084061]
[1739930817312,0.7611,2682.2,2681.6,0.03728676]
[1739930817523,0.7611,2682.2,2681.6,1.38108501]
[1739930819235,0.7611,2682.2,2681.7,0.03728386]
[1739930819533,0.7611,2682.2,2681.8,0.06802215]
[1739930819734,0.7587,2682.5,2681.9,0.59780221]
[1739930820055,0.7587,2682.5,2681.9,0.92759818]
[1739930821737,0.7587,2682.5,2681.9,0.66574921]
[1739930822141,0.7587,2682.5,2682.0,0.74127237]
[1739930822298,0.7587,2682.5,2682.0,0.80884274]
[1739930822497,0.7587,2682.5,2682.0,0.50823487]
[1739930822701,0.7587,2682.5,2682.0,0.06757037]
[1739930822922,2.49867917,2682.3,2681.7,5.36]
[1739930823134,0.8269,2682.2,2682.1,0.06731937]
[1739930823348,0.8269,2682.2,2681.7,5.36]
[1739930823555,0.8269,2682.2,2682.1,0.06731937]
[1739930823734,0.8269,2682.2,2681.7,5.36]
[1739930823942,0.8269,2682.2,2682.1,0.06731937]
[1739930824241,0.8269,2682.2,2681.7,5.36]
[1739930824435,0.8269,2682.2,2682.1,0.0674387]
[1739930824942,1.18706779,2682.2,2681.7,5.36]
[1739930825097,0.7935,2682.1,2681.7,5.36]
[1739930825501,0.7935,2682.1,2681.1,3.0]
[1739930826437,0.7935,2682.1,2681.2,1.29426288]
[1739930827415,0.779,2681.6,2680.8,6.1854]
[1739930827615,0.779,2681.6,2680.8,5.36]
[1739930827936,0.779,2681.6,2680.9,3.6818047]
[1739930828454,0.779,2681.6,2680.9,0.6818047]
[1739930828659,2.49867917,2681.4,2680.9,0.6818047]
[1739930829001,0.7739,2681.0,2680.9,0.6818047]
[1739930829349,0.7739,2681.0,2680.7,0.26222873]
[1739930830366,0.7929,2681.4,2680.7,0.26222873]
[1739930831386,0.7929,2681.4,2680.8,0.81222873]
[1739930832091,0.7929,2681.4,2680.9,0.7843]
[1739930832285,0.1,2682.7,2680.9,0.7843]
[1739930832286,0.8271,2681.7,2681.1,4.2797]
[1739930832488,0.8271,2681.7,2681.2,0.73169952]
[1739930833686,0.8271,2681.7,2681.0,3.99419681]
[1739930833886,0.8271,2681.7,2681.3,0.26222873]
[1739930834666,0.7562,2682.0,2681.3,0.26222873]
[1739930835855,0.7562,2682.0,2681.4,0.26222873]
[1739930836357,0.7685,2681.7,2681.4,0.26222873]
[1739930837177,0.7685,2681.7,2681.1,5.36]
[1739930837376,0.7685,2681.7,2681.1,5.96986134]
[1739930838184,2.49867917,2682.1,2681.2,0.87491752]
[1739930838384,0.7571,2682.0,2681.2,3.83762304]
[1739930838912,0.7571,2682.0,2681.3,0.26199009]
[1739930839201,0.7571,2682.0,2681.4,3.76667943]
[1739930839359,0.8111,2682.3,2681.5,1.18888174]
[1739930839564,0.8111,2682.3,2681.6,0.03728758]
[1739930839769,0.8111,2682.3,2681.6,0.06575923]
[1739930840398,0.8111,2682.3,2681.6,0.32774932]
[1739930842064,0.8111,2682.3,2681.7,0.26199009]
[1739930842414,0.8111,2682.3,2681.8,0.06560893]
[1739930842777,0.8111,2682.3,2681.7,0.26199009]
[1739930842985,1.14207792,2682.3,2681.9,0.06553378]
[1739930843164,0.8155,2682.0,2681.8,0.06560893]
[1739930843360,0.8155,2682.0,2681.7,0.26199009]
[1739930843596,0.8155,2682.0,2681.9,0.06553378]
[1739930843803,0.8155,2682.0,2681.8,0.06560893]
[1739930844012,0.8155,2682.0,2681.9,0.06553378]
[1739930844818,0.8155,2682.0,2681.6,0.26199009]
[1739930844962,0.8155,2682.0,2681.9,0.06553378]
[1739930845165,0.8155,2682.0,2681.6,0.8972433]
[1739930845365,0.8218,2682.3,2681.9,0.06553378]
[1739930845566,0.8218,2682.3,2681.7,4.52286]
[1739930845917,0.8218,2682.3,2681.7,0.83118475]
[1739930846114,0.7829,2682.6,2681.8,0.54953749]
[1739930846395,0.7829,2682.6,2681.9,0.8279]
[1739930846796,0.7829,2682.6,2682.0,0.06518267]
[1739930846996,0.74213083,2683.0,2682.0,0.10246266]
[1739930846997,3.24081,2683.0,2682.0,0.10246266]
[1739930847204,0.7843,2682.9,2682.2,0.8084]
[1739930847408,0.7843,2683.2,2682.3,3.96811502]
[1739930847596,0.7843,2683.2,2682.5,3.55]
[1739930847907,0.7843,2683.2,2682.6,0.06465044]
[1739930848103,0.7843,2683.2,2682.6,6.16326726]
[1739930848264,2.49867917,2683.2,2682.6,5.42465044]
[1739930848984,0.7843,2683.3,2682.6,9.15231044]
[1739930849162,0.7843,2683.3,2682.7,0.58726962]
[1739930849365,0.7843,2683.7,2683.0,3.72706]
[1739930849588,0.7843,2683.7,2683.1,0.10029208]
[1739930849921,3.28297917,2683.7,2683.1,0.0630273]
[1739930850074,3.28297917,2683.7,2683.2,0.54230273]
[1739930850277,3.28297917,2683.7,2683.3,0.06287716]
[1739930850478,3.28297917,2683.7,2683.2,0.54230273]
[1739930850674,3.28297917,2683.7,2683.3,0.06287716]
[1739930850862,3.28297917,2683.7,2683.0,5.36]
[1739930851074,3.28297917,2683.7,2683.1,0.0630273]
[1739930851495,0.7608,2683.3,2683.1,0.0630273]
[1739930853320,0.7608,2683.3,2683.2,0.06263892]
[1739930853500,3.31777917,2683.3,2682.4,0.73293577]
[1739930853811,3.31777917,2683.3,2682.5,0.10065873]
[1739930854117,3.31777917,2683.3,2682.5,0.85764028]
[1739930854301,3.31777917,2683.3,2682.5,0.89491518]
[1739930854500,3.31777917,2683.3,2682.5,0.85764028]
[1739930854898,0.7661,2683.2,2682.5,0.06338383]
[1739930855621,0.7661,2683.2,2682.5,0.10065873]
[1739930855783,0.7661,2683.2,2682.5,0.06338383]
[1739930855985,0.7661,2683.2,2682.6,0.826]
[1739930856182,0.7661,2683.2,2682.7,0.06323363]
[1739930856483,3.26477917,2683.2,2682.7,0.06323363]
[1739930856682,3.59175709,2683.2,2682.4,0.73293577]
[1739930856923,3.26477917,2683.2,2682.5,0.06350918]
[1739930857224,0.7661,2683.2,2682.5,0.06350918]
[1739930858081,0.7661,2683.2,2682.5,5.42350918]
[1739930862790,3.26477917,2683.2,2682.5,5.42350918]
[1739930868662,0.7737,2683.1,2682.5,5.42350918]
[1739930868813,0.7737,2682.8,2682.5,0.06350918]
[1739930869145,3.27237917,2682.6,2682.5,0.06350918]
[1739930869317,3.27237917,2682.6,2682.1,0.74766983]
[1739930869526,0.7737,2682.6,2682.2,0.06367813]
[1739930869716,0.7737,2682.6,2681.9,5.36]
[1739930870034,0.7737,2682.6,2682.0,1.46641493]
[1739930870261,0.8253,2682.8,2682.2,0.7657]
[1739930870746,0.8253,2682.8,2682.3,0.06372837]
[1739930870913,0.8253,2682.8,2682.2,0.7657]
[1739930871257,0.8253,2682.8,2682.3,0.06372837]
[1739930871621,0.8253,2682.8,2682.2,0.7657]
[1739930871836,0.8253,2682.8,2682.4,0.06365325]
[1739930872041,0.8253,2682.8,2682.3,0.44029837]
[1739930872346,0.8253,2682.8,2682.4,0.06365325]
[1739930876577,0.8253,2682.8,2682.5,0.26208275]
[1739930876719,0.8253,2682.8,2682.6,0.06362211]
[1739930878131,0.8253,2682.8,2682.3,3.4193424]
[1739930878358,0.8253,2682.8,2682.4,0.48227656]
[1739930880730,0.276,2683.4,2682.5,0.26206918]
[1739930880731,2.77467917,2683.4,2682.5,0.26206918]
[1739930880935,2.77467917,2683.4,2682.6,0.06362211]
[1739930880936,0.7584,2683.3,2682.6,0.06362211]
[1739930882558,0.83,2683.0,2682.6,0.06362211]
[1739930882758,0.83,2683.0,2682.2,3.7657]
[1739930882946,0.83,2683.0,2682.3,0.06384744]
[1739930883856,0.83,2683.0,2682.4,0.26175477]
[1739930884257,0.83,2683.0,2682.5,0.06369721]
[1739930885178,0.83,2683.0,2682.2,3.0]
[1739930885380,0.83,2683.0,2682.3,0.89979729]
[1739930886682,0.83,2683.0,2682.3,1.31839837]
[1739930887888,0.83,2683.0,2682.4,0.26162466]
[1739930888187,0.83,2683.0,2682.5,0.06364707]
[1739930889772,0.83,2683.0,2682.3,0.836]
[1739930889959,0.83,2683.0,2682.4,0.44732218]
[1739930890331,0.83,2683.0,2682.4,0.06372218]
[1739930891038,0.83,2683.0,2682.2,0.41861105]
[1739930891253,0.83,2683.0,2682.5,0.06364707]
[1739930891484,0.83,2683.0,2682.2,0.41861105]
[1739930891984,0.83,2683.0,2682.3,0.06379729]
[1739930892186,0.781,2682.8,2682.3,0.32543695]
[1739930893542,0.7704,2682.4,2682.3,0.32543695]
[1739930893993,0.7704,2682.4,2681.5,0.43894887]
[1739930894150,0.7704,2682.4,2681.6,0.06219728]
[1739930894488,0.7704,2682.4,2681.7,0.73173102]
[1739930894839,0.7704,2682.4,2681.8,0.06204697]
[1739930895074,0.7704,2682.4,2681.9,0.4522658]
[1739930895274,0.7704,2682.4,2681.8,0.86094697]
[1739930895438,0.7704,2682.4,2682.0,0.06189669]
[1739930895640,0.8301,2682.7,2682.2,3.72827]
[1739930895839,0.8301,2682.7,2682.3,3.0]
[1739930896070,0.8301,2683.2,2682.3,3.06182783]
[1739930896243,0.8301,2683.2,2682.4,0.67900078]
[1739930896674,0.8301,2683.2,2682.5,0.0616776]
[1739930896838,0.8301,2683.2,2682.5,0.8533776]
[1739930898552,0.8301,2683.2,2682.5,4.5811376]
[1739930898753,0.8301,2683.2,2682.5,3.8533776]
[1739930899086,0.8301,2683.2,2682.6,0.82602684]
[1739930899480,0.8301,2683.2,2682.7,0.06116433]
[1739930899842,0.8171,2683.0,2682.4,5.36]
[1739930900043,0.8171,2683.0,2682.8,0.06108924]
[1739930900478,0.8171,2683.0,2682.9,0.06101415]
[1739930900939,0.8171,2683.0,2682.2,3.75381297]
[1739930901089,0.79,2682.7,2682.1,5.36]
[1739930901283,0.79,2682.7,2682.3,0.06148353]
[1739930901525,0.79,2682.7,2682.2,0.06155865]
[1739930901842,0.79,2682.7,2682.3,0.06161497]
[1739930902191,0.79,2682.7,2681.7,3.8119]
[1739930902384,0.79,2682.7,2681.8,1.01646513]
[1739930902632,0.79,2682.7,2681.8,1.27841046]
[1739930902991,0.79,2682.7,2682.1,0.74073243]
[1739930903190,0.79,2682.7,2682.2,0.0618466]
[1739930903850,2.49867917,2682.5,2682.2,0.0618466]
[1739930904136,0.7578,2682.4,2682.2,0.0618466]
[1739930905840,0.7524,2682.6,2682.2,0.0618466]
[1739930907999,5.38,2682.7,2682.3,0.7784]
[1739930908160,5.38,2682.7,2682.4,0.06185913]
[1739930908659,0.7529,2683.0,2682.4,0.06185913]
[1739930909727,2.49867917,2682.9,2682.1,1.54923243]
[1739930909925,0.8023,2682.8,2682.2,0.061784]
[1739930913989,0.8023,2682.8,2681.9,5.36]
[1739930914185,0.8023,2682.8,2682.0,0.06204068]
[1739930914479,0.8023,2682.8,2682.0,0.82484535]
[1739930914650,0.7538,2682.6,2682.0,0.82484535]
[1739930915280,0.7538,2682.6,2682.1,0.7928]
[1739930915647,0.7538,2682.6,2682.2,0.06203443]
[1739930916070,0.7681,2682.8,2682.2,0.06203443]
[1739930918556,0.7681,2682.8,2682.0,0.76280467]
[1739930918890,0.8037,2682.6,2682.1,0.06210955]
[1739930919656,0.7987,2682.5,2682.1,0.06210955]
[1739930919857,0.7987,2682.2,2682.1,0.06210955]
[1739930920052,0.7987,2682.2,2681.7,0.4191135]
[1739930920481,0.7987,2682.2,2681.8,0.06009479]
[1739930920883,0.7987,2682.2,2681.7,1.18048851]
[1739930921189,0.7987,2682.2,2681.8,0.06009479]
[1739930921355,0.7987,2682.2,2681.7,1.18048851]
[1739930921558,0.7987,2682.2,2681.8,0.06009479]
[1739930921758,0.7987,2682.2,2681.7,0.95681386]
[1739930921958,0.7987,2682.2,2681.8,0.06009479]
[1739930922201,0.7987,2682.2,2681.7,0.76137501]
[1739930922494,0.7987,2682.2,2681.8,0.06023236]
[1739930922688,0.8014,2682.0,2681.8,0.06023236]
[1739930922890,3.30007917,2682.0,2681.7,0.76137501]
[1739930923116,3.30007917,2682.0,2681.3,0.4191135]
[1739930923482,3.30007917,2682.0,2681.4,0.06053925]
[1739930923885,0.8014,2682.0,2681.5,1.51571598]
[1739930924329,0.8014,2682.0,2681.6,0.06038892]
[1739930935109,0.764,2681.9,2681.6,0.06038892]
[1739930935308,0.764,2681.6,2681.0,0.41937249]
[1739930935902,0.764,2681.6,2680.8,3.99231757]
[1739930936097,0.764,2681.6,2680.8,0.26219757]
[1739930937233,0.764,2681.6,2680.9,0.26219757]
[1739930937838,0.764,2681.6,2681.0,0.7858]
[1739930938038,0.764,2681.6,2681.1,0.47779476]
[1739930938249,0.7543,2681.8,2681.1,0.47779476]
[1739930938546,0.7543,2681.8,2681.2,0.7858]
[1739930939051,0.271,2682.1,2681.2,0.7858]
[1739930939052,0.8115,2682.0,2681.2,0.7858]
[1739930940545,0.8115,2682.0,2681.2,1.5386655]
[1739930941039,0.8173,2682.2,2681.6,3.72899]
[1739930941210,0.8173,2682.4,2681.6,0.794]
[1739930941533,0.8173,2682.4,2681.7,0.03728651]
[1739930941735,0.8173,2682.4,2681.6,0.794]
[1739930941961,0.8173,2682.4,2681.7,0.452317]
[1739930942124,0.8173,2682.6,2681.8,0.794]
[1739930942328,0.8173,2682.6,2681.8,4.5601146]
[1739930942521,0.8173,2682.6,2681.8,4.52283]
[1739930943048,6.1973,2682.8,2681.9,3.78920245]
[1739930943255,5.38,2682.8,2682.0,5.39092348]
[1739930943463,5.38,2682.8,2682.1,0.09766116]
[1739930943825,0.8173,2683.0,2682.4,0.7507]
[1739930944018,0.8173,2683.0,2682.5,0.0599191]
[1739930944349,2.49867917,2683.3,2682.5,0.0599191]
[1739930944350,0.8006,2683.2,2682.5,0.0599191]
[1739930944663,0.8006,2683.2,2682.5,0.58942832]
[1739930944815,5.385,2683.4,2682.8,3.72731]
[1739930944816,0.005,2683.4,2682.8,3.72731]
[1739930945014,0.005,2683.4,2682.9,0.09689136]
[1739930945251,0.005,2683.4,2682.9,0.05961872]
[1739930945446,0.005,2683.4,2682.9,0.99557987]
[1739930945621,0.005,2683.4,2683.0,0.05926228]
[1739930946212,0.005,2683.4,2683.3,7.60622917]
[1739930946491,0.1465638,2684.3,2683.5,0.8308]
[1739930946642,0.1465638,2684.3,2684.2,3.7255]
[1739930946842,0.1465638,2684.3,2684.2,4.64921914]
[1739930947052,0.1465638,2684.3,2684.2,4.61196971]
[1739930947464,0.1465638,2684.3,2684.2,16.84919638]
[1739930947682,0.1465638,2684.3,2684.2,16.81194888]
[1739930948252,1.55981033,2686.6,2685.0,4.51569]
[1739930948451,0.8208,2686.6,2685.8,0.7913]
[1739930948782,0.04,2686.6,2685.9,0.09315398]
[1739930948981,0.04,2686.6,2685.9,2.5918291]
[1739930949155,0.04,2686.6,2685.9,2.55460456]
[1739930949558,0.43053223,2686.5,2685.9,0.05592539]
[1739930949757,0.04,2686.6,2685.9,0.05592539]
[1739930950056,0.7808,2686.5,2685.9,0.05592539]
[1739930950244,0.7808,2686.5,2685.2,0.7913]
[1739930950448,0.7808,2686.5,2685.3,2.54986111]
[1739930950660,0.7808,2686.5,2685.4,4.27371]
[1739930950884,0.7808,2686.5,2685.5,0.05103205]
[1739930951079,0.04,2686.6,2685.6,3.88034347]
[1739930951266,0.04,2686.6,2685.8,3.72321]
[1739930951471,0.04,2686.6,2686.5,3.05604347]
[1739930951657,0.04,2686.6,2686.5,15.99986683]
[1739930951849,0.04,2686.6,2686.5,16.56293641]
[1739930952045,0.04,2686.6,2686.5,18.3841503]